[Event "57th Biel Festival MTO 2024"]
[White "Arsenie,Cristian Marc"]
[Black "Stevens,Christian"]
[Site "Biel"]
[Round "2.59"]
[Annotator "RC"]
[Result "1-0"]
[Date "2024.07.16"]
[WhiteElo "2121"]
[BlackElo "1936"]
[PlyCount "48"]
[TimeControl "60"]

1. e4 {[%emt 0:0:4]} c5 {[%emt 0:0:10]} 2. Nf3 {[%emt 0:0:6]} d6 {[%emt 0:0:7]} 3. d4 {[%emt 0:0:5]} cxd4 {[%emt 0:0:10]} 4. Nxd4 {[%emt 0:0:5]} Nf6 {[%emt 0:0:11]} 5. Nc3 {[%emt 0:0:4]} a6 {[%emt 0:0:6]} 6. Be3 {[%emt 0:0:29]} e6 {[%emt 0:0:30]} 7. a3 {[%emt 0:1:18]} Qc7 {[%emt 0:3:2]} 8. g4 {[%emt 0:43:10]} b5 {[%emt 0:17:50]} 9. g5 {[%emt 0:0:30]} Nfd7 {[%emt 0:0:30]} 10. f4 {[%emt 0:0:30]} Nb6 {[%emt 0:0:30]} 11. Qf3 {[%emt 0:0:30]} Bb7 {[%emt 0:0:30]} 12. O-O-O {[%emt 0:0:30]} N8d7 {[%emt 0:0:30]} 13. Rg1 {[%emt 0:0:30]} Nc5 {[%emt 0:0:30]} 14. Bg2 {[%emt 0:0:30]} Rc8 {[%emt 0:0:30]} 15. Bf2 {[%emt 0:0:30]} Nba4 {[%emt 0:13:56]} 16. Rge1 {[%emt 0:6:7]} Be7 {[%emt 0:5:14]} 17. h4 {[%emt 0:2:6]} Qb8 {[%emt 0:16:4]} 18. Nxa4 {[%emt 0:2:34]} Nxa4 {[%emt 0:0:28]} 19. f5 {[%emt 0:4:28]} e5 {[%emt 0:1:9]} 20. f6 {[%emt 0:4:43]} exd4 {[%emt 0:2:35]} 21. fxg7 {[%emt 0:2:58]} Rg8 {[%emt 0:0:19]} 22. Bxd4 {[%emt 0:0:8]} Qc7 {[%emt 0:0:57]} 23. Rd2 {[%emt 0:3:57]} Bxg5 {[%emt 0:9:55]} 24. hxg5 {[%emt 0:1:16]} Rb8 {[%emt 0:3:25]} 1-0

[Event "57th Biel Festival MTO 2024"]
[White "Stefan,Iulia-Cristiana"]
[Black "Harish,Neeraj"]
[Site "Biel"]
[Round "2.60"]
[Annotator "RC"]
[Result "0-1"]
[Date "2024.07.16"]
[WhiteElo "1953"]
[BlackElo "2123"]
[PlyCount "86"]
[TimeControl "60"]

1. d4 {[%emt 0:0:5]} Nf6 {[%emt 0:0:12]} 2. Nf3 {[%emt 0:0:5]} c5 {[%emt 0:0:9]} 3. d5 {[%emt 0:0:7]} b5 {[%emt 0:0:5]} 4. c3 {[%emt 0:0:8]} b4 {[%emt 0:0:18]} 5. Bg5 {[%emt 0:13:44]} g6 {[%emt 0:0:43]} 6. Bxf6 {[%emt 0:15:46]} exf6 {[%emt 0:0:9]} 7. e4 {[%emt 0:0:34]} Bg7 {[%emt 0:2:12]} 8. Bd3 {[%emt 0:0:51]} O-O {[%emt 0:0:54]} 9. O-O {[%emt 0:0:10]} d6 {[%emt 0:3:58]} 10. Qc2 {[%emt 0:2:52]} bxc3 {[%emt 0:4:57]} 11. Nxc3 {[%emt 0:3:10]} Nd7 {[%emt 0:0:19]} 12. Rab1 {[%emt 0:3:37]} Nb6 {[%emt 0:9:1]} 13. Nd2 {[%emt 0:4:41]} Bd7 {[%emt 0:5:30]} 14. b4 {[%emt 0:33:32]} c4 {[%emt 0:4:33]} 15. Nxc4 {[%emt 0:9:23]} Nxc4 {[%emt 0:0:19]} 16. Bxc4 {[%emt 0:0:5]} Rc8 {[%emt 0:4:20]} 17. Qd3 {[%emt 0:2:55]} f5 {[%emt 0:5:5]} 18. Rbc1 {[%emt 0:3:9]} Qc7 {[%emt 0:2:17]} 19. Ne2 {[%emt 0:3:32]} fxe4 {[%emt 0:2:12]} 20. Qxe4 {[%emt 0:4:9]} Bb2 {[%emt 0:1:42]} 21. Ba6 {[%emt 0:2:48]} Bxc1 {[%emt 0:0:15]} 22. Bxc8 {[%emt 0:0:17]} Rxc8 {[%emt 0:0:7]} 23. Nxc1 {[%emt 0:0:25]} Qxc1 {[%emt 0:0:12]} 24. h3 {[%emt 0:2:40]} Qc4 {[%emt 0:6:44]} 25. Qe7 {[%emt 0:1:38]} Bb5 {[%emt 0:2:51]} 26. Rd1 {[%emt 0:0:48]} Qe2 {[%emt 0:0:26]} 27. Qxe2 {[%emt 0:0:13]} Bxe2 {[%emt 0:0:6]} 28. Re1 {[%emt 0:0:11]} Rc2 {[%emt 0:0:41]} 29. a4 {[%emt 0:0:20]} Kf8 {[%emt 0:0:24]} 30. Rb1 {[%emt 0:0:34]} Rd2 {[%emt 0:0:43]} 31. Kh2 {[%emt 0:0:54]} Bd3 {[%emt 0:2:25]} 32. Rb3 {[%emt 0:0:32]} Bc4 {[%emt 0:0:5]} 33. Rc3 {[%emt 0:0:7]} Bxd5 {[%emt 0:0:6]} 34. Rc8+ {[%emt 0:1:17]} Kg7 {[%emt 0:0:7]} 35. Kg3 {[%emt 0:0:5]} Rd4 {[%emt 0:0:25]} 36. Rc7 {[%emt 0:0:20]} Rxb4 {[%emt 0:2:13]} 37. Rxa7 {[%emt 0:0:6]} h5 {[%emt 0:3:13]} 38. a5 {[%emt 0:1:30]} h4+ {[%emt 0:0:6]} 39. Kh2 {[%emt 0:0:4]} Rb2 {[%emt 0:0:59]} 40. Kg1 {[%emt 0:0:0]} Bc4 {[%emt 0:0:0]} 41. a6 {[%emt 0:1:5]} Ra2 {[%emt 0:0:34]} 42. Rc7 {[%emt 0:1:19]} Bxa6 {[%emt 0:0:6]} 43. Rd7 {[%emt 0:0:8]} Rd2 {[%emt 0:0:8]} 0-1

[Event "57th Biel Festival MTO 2024"]
[White "Pinelli,Gian"]
[Black "Kaiser,Elmar"]
[Site "Biel"]
[Round "2.61"]
[Annotator "RC"]
[Result "1/2-1/2"]
[Date "2024.07.16"]
[WhiteElo "1874"]
[BlackElo "2116"]
[PlyCount "129"]
[TimeControl "60"]

1. d4 {[%emt 0:0:6]} Nf6 {[%emt 0:0:45]} 2. c4 {[%emt 0:0:12]} e6 {[%emt 0:0:46]} 3. Nc3 {[%emt 0:0:7]} Bb4 {[%emt 0:0:27]} 4. Qc2 {[%emt 0:0:26]} O-O {[%emt 0:2:3]} 5. a3 {[%emt 0:0:8]} Bxc3+ {[%emt 0:0:7]} 6. Qxc3 {[%emt 0:0:7]} b6 {[%emt 0:0:26]} 7. Bg5 {[%emt 0:3:5]} d6 {[%emt 0:5:12]} 8. Nf3 {[%emt 0:3:58]} Nbd7 {[%emt 0:0:24]} 9. g3 {[%emt 0:5:13]} h6 {[%emt 0:0:55]} 10. Bxf6 {[%emt 0:0:55]} Qxf6 {[%emt 0:6:10]} 11. Bg2 {[%emt 0:2:36]} Bb7 {[%emt 0:0:55]} 12. O-O {[%emt 0:2:8]} Rfe8 {[%emt 0:4:33]} 13. Rfd1 {[%emt 0:2:37]} Qe7 {[%emt 0:9:51]} 14. Qc2 {[%emt 0:14:5]} Nf6 {[%emt 0:3:49]} 15. Nh4 {[%emt 0:10:17]} c5 {[%emt 0:10:12]} 16. dxc5 {[%emt 0:1:30]} dxc5 {[%emt 0:3:4]} 17. Bxb7 {[%emt 0:6:39]} Qxb7 {[%emt 0:0:5]} 18. f3 {[%emt 0:0:39]} Red8 {[%emt 0:7:54]} 19. Qc3 {[%emt 0:5:38]} Rd7 {[%emt 0:4:23]} 20. Rd3 {[%emt 0:4:17]} Rad8 {[%emt 0:3:39]} 21. Rad1 {[%emt 0:1:14]} Qc7 {[%emt 0:0:59]} 22. Ng2 {[%emt 0:3:0]} Ne8 {[%emt 0:7:52]} 23. Ne3 {[%emt 0:5:7]} Rd6 {[%emt 0:2:10]} 24. Ng4 {[%emt 0:4:0]} f6 {[%emt 0:2:7]} 25. Nf2 {[%emt 0:0:58]} R8d7 {[%emt 0:4:22]} 26. Ne4 {[%emt 0:0:47]} Rxd3 {[%emt 0:0:17]} 27. Rxd3 {[%emt 0:0:9]} Qd8 {[%emt 0:0:13]} 28. Nf2 {[%emt 0:3:9]} e5 {[%emt 0:4:7]} 29. Qd2 {[%emt 0:4:20]} Rd4 {[%emt 0:1:10]} 30. e3 {[%emt 0:2:31]} Rxd3 {[%emt 0:0:37]} 31. Qxd3 {[%emt 0:0:14]} Qxd3 {[%emt 0:0:40]} 32. Nxd3 {[%emt 0:0:7]} Nd6 {[%emt 0:0:19]} 33. b3 {[%emt 0:1:49]} e4 {[%emt 0:0:23]} 34. fxe4 {[%emt 0:0:14]} Nxe4 {[%emt 0:0:7]} 35. b4 {[%emt 0:0:42]} cxb4 {[%emt 0:1:59]} 36. axb4 {[%emt 0:0:21]} Kf7 {[%emt 0:1:51]} 37. Kg2 {[%emt 0:6:17]} Ke7 {[%emt 0:3:32]} 38. Nb2 {[%emt 0:1:42]} Ke6 {[%emt 0:5:53]} 39. Kf3 {[%emt 0:0:33]} f5 {[%emt 0:0:35]} 40. Ke2 {[%emt 0:0:0]} g5 {[%emt 0:0:0]} 41. Nd3 {[%emt 0:7:29]} Kd6 {[%emt 0:3:2]} 42. Nb2 {[%emt 0:1:40]} Kc6 {[%emt 0:1:20]} 43. Kd3 {[%emt 0:1:19]} a5 {[%emt 0:0:45]} 44. bxa5 {[%emt 0:3:52]} bxa5 {[%emt 0:1:36]} 45. Kd4 {[%emt 0:1:19]} Nd2 {[%emt 0:3:23]} 46. Ke5 {[%emt 0:2:56]} Kc5 {[%emt 0:1:2]} 47. Kxf5 {[%emt 0:0:28]} Nxc4 {[%emt 0:4:51]} 48. Nxc4 {[%emt 0:0:37]} Kxc4 {[%emt 0:0:10]} 49. e4 {[%emt 0:0:6]} a4 {[%emt 0:4:13]} 50. e5 {[%emt 0:1:38]} a3 {[%emt 0:6:20]} 51. e6 {[%emt 0:0:8]} a2 {[%emt 0:0:13]} 52. e7 {[%emt 0:0:30]} a1=Q {[%emt 0:0:30]} 53. e8=Q {[%emt 0:0:14]} Qf1+ {[%emt 0:6:27]} 54. Kg6 {[%emt 0:2:12]} Qg2 {[%emt 0:0:45]} 55. Qe6+ {[%emt 0:2:0]} Kc3 {[%emt 0:3:38]} 56. Qe3+ {[%emt 0:1:10]} Kb2 {[%emt 0:0:25]} 57. Kxh6 {[%emt 0:0:28]} Qxh2+ {[%emt 0:0:23]} 58. Kxg5 {[%emt 0:0:12]} Qh7 {[%emt 0:2:26]} 59. Qe5+ {[%emt 0:0:37]} Ka2 {[%emt 0:0:24]} 60. Kf4 {[%emt 0:2:16]} Qh2 {[%emt 0:0:49]} 61. Qd5+ {[%emt 0:1:41]} Kb2 {[%emt 0:0:29]} 62. Qe5+ {[%emt 0:11:21]} Ka2 {[%emt 0:0:39]} 63. Kg4 {[%emt 0:0:12]} Qh6 {[%emt 0:1:11]} 64. Kf3 {[%emt 0:1:10]} Qh1+ {[%emt 0:0:46]} 65. Kf4 {[%emt 0:1:43]} 1/2-1/2

[Event "57th Biel Festival MTO 2024"]
[White "Altantuya,Boldbaatar"]
[Black "Kheerthi Ganta"]
[Site "Biel"]
[Round "2.62"]
[Annotator "RC"]
[Result "1-0"]
[Date "2024.07.16"]
[WhiteElo "2107"]
[BlackElo "1987"]
[PlyCount "28"]
[TimeControl "60"]

1. d4 {[%emt 0:0:2]} Nf6 {[%emt 0:0:57]} 2. c4 {[%emt 0:0:12]} e6 {[%emt 0:0:26]} 3. Nf3 {[%emt 0:0:22]} d5 {[%emt 0:1:15]} 4. Nc3 {[%emt 0:0:31]} Bb4 {[%emt 0:0:49]} 5. e3 {[%emt 0:5:4]} O-O {[%emt 0:1:57]} 6. a3 {[%emt 0:0:32]} Bxc3+ {[%emt 0:6:59]} 7. bxc3 {[%emt 0:0:7]} b6 {[%emt 0:1:3]} 8. cxd5 {[%emt 0:2:9]} exd5 {[%emt 0:0:30]} 9. Bb2 {[%emt 0:6:54]} Nbd7 {[%emt 0:3:7]} 10. Bd3 {[%emt 0:2:12]} c5 {[%emt 0:1:33]} 11. Rf1 {[%emt 0:0:23]} Re8 {[%emt 0:1:18]} 12. g3 {[%emt 0:49:32]} g6 {[%emt 0:0:0]} 13. h3 {[%emt 0:0:26]} h5 {[%emt 0:0:0]} 14. g4 {[%emt 0:15:16]} h4 {[%emt 0:0:0]} 1-0

[Event "57th Biel Festival MTO 2024"]
[White "Malli,Shiivesh Sunil"]
[Black "Lyutsinger,Iren"]
[Site "Biel"]
[Round "2.63"]
[Annotator "RC"]
[Result "1/2-1/2"]
[Date "2024.07.16"]
[WhiteElo "1916"]
[BlackElo "2069"]
[PlyCount "67"]
[TimeControl "60"]

1. c4 {[%emt 0:0:12]} e5 {[%emt 0:0:10]} 2. Nc3 {[%emt 0:0:6]} Nf6 {[%emt 0:0:17]} 3. g3 {[%emt 0:0:5]} d5 {[%emt 0:0:10]} 4. cxd5 {[%emt 0:0:7]} Nxd5 {[%emt 0:0:3]} 5. Bg2 {[%emt 0:0:9]} Nb6 {[%emt 0:0:6]} 6. d3 {[%emt 0:0:11]} Be7 {[%emt 0:0:25]} 7. Nf3 {[%emt 0:0:18]} Nc6 {[%emt 0:0:8]} 8. O-O {[%emt 0:3:2]} O-O {[%emt 0:0:4]} 9. a3 {[%emt 0:0:47]} Be6 {[%emt 0:0:10]} 10. b4 {[%emt 0:0:49]} a5 {[%emt 0:0:28]} 11. b5 {[%emt 0:0:31]} Nd4 {[%emt 0:0:5]} 12. e3 {[%emt 0:0:15]} Nxf3+ {[%emt 0:16:48]} 13. Bxf3 {[%emt 0:1:1]} Nd5 {[%emt 0:1:2]} 14. Bb2 {[%emt 0:14:58]} f6 {[%emt 0:8:49]} 15. d4 {[%emt 0:10:39]} Nxc3 {[%emt 0:10:5]} 16. Bxc3 {[%emt 0:0:18]} exd4 {[%emt 0:0:28]} 17. Qxd4 {[%emt 0:16:9]} Qc8 {[%emt 0:18:53]} 18. Qe4 {[%emt 0:4:44]} c6 {[%emt 0:0:31]} 19. bxc6 {[%emt 0:6:2]} bxc6 {[%emt 0:1:34]} 20. Bg2 {[%emt 0:7:38]} Rd8 {[%emt 0:3:54]} 21. Rfc1 {[%emt 0:6:57]} Rd6 {[%emt 0:14:20]} 22. Bd4 {[%emt 0:4:28]} Qf8 {[%emt 0:5:41]} 23. Bc5 {[%emt 0:20:46]} Bd5 {[%emt 0:1:10]} 24. Qa4 {[%emt 0:3:34]} Re6 {[%emt 0:9:56]} 25. Bxe7 {[%emt 0:2:35]} Qxe7 {[%emt 0:0:45]} 26. Bxd5 {[%emt 0:2:58]} cxd5 {[%emt 0:0:1]} 27. Rd1 {[%emt 0:0:36]} Re5 {[%emt 0:3:59]} 28. Rab1 {[%emt 0:2:34]} Rd8 {[%emt 0:4:12]} 29. Qxa5 {[%emt 0:1:25]} d4 {[%emt 0:1:31]} 30. Qb6 {[%emt 0:0:37]} Rxe3 {[%emt 0:2:4]} 31. fxe3 {[%emt 0:0:44]} Qxe3+ {[%emt 0:0:5]} 32. Kg2 {[%emt 0:0:16]} Qe2+ {[%emt 0:0:20]} 33. Kg1 {[%emt 0:0:27]} Qe3+ {[%emt 0:0:6]} 34. Kg2 {[%emt 0:0:41]} 1/2-1/2

[Event "57th Biel Festival MTO 2024"]
[White "Coles,Robin"]
[Black "Cordes,Jule"]
[Site "Biel"]
[Round "2.64"]
[Annotator "RC"]
[Result "1-0"]
[Date "2024.07.16"]
[WhiteElo "2084"]
[BlackElo "1900"]
[PlyCount "99"]
[TimeControl "60"]

1. e4 {[%emt 0:0:6]} e6 {[%emt 0:0:8]} 2. d4 {[%emt 0:0:4]} d5 {[%emt 0:0:9]} 3. Nd2 {[%emt 0:0:5]} Nf6 {[%emt 0:0:14]} 4. e5 {[%emt 0:0:4]} Nfd7 {[%emt 0:0:8]} 5. Bd3 {[%emt 0:0:6]} c5 {[%emt 0:0:13]} 6. c3 {[%emt 0:0:3]} Nc6 {[%emt 0:0:12]} 7. Ngf3 {[%emt 0:0:19]} Qb6 {[%emt 0:1:20]} 8. O-O {[%emt 0:0:39]} cxd4 {[%emt 0:0:23]} 9. cxd4 {[%emt 0:0:2]} a5 {[%emt 0:0:49]} 10. a4 {[%emt 0:2:46]} Nxd4 {[%emt 0:2:24]} 11. Nxd4 {[%emt 0:0:6]} Qxd4 {[%emt 0:0:8]} 12. Nf3 {[%emt 0:0:20]} Qb6 {[%emt 0:1:21]} 13. Qe2 {[%emt 0:10:37]} Nc5 {[%emt 0:9:9]} 14. Be3 {[%emt 0:8:33]} Bd7 {[%emt 0:14:0]} 15. Ng5 {[%emt 0:4:46]} Qd8 {[%emt 0:16:19]} 16. Bc2 {[%emt 0:19:48]} g6 {[%emt 0:11:56]} 17. Qf3 {[%emt 0:5:57]} Qe7 {[%emt 0:1:29]} 18. h4 {[%emt 0:1:36]} Rc8 {[%emt 0:4:9]} 19. Nh3 {[%emt 0:9:0]} Bg7 {[%emt 0:18:3]} 20. Bg5 {[%emt 0:4:1]} Qf8 {[%emt 0:0:20]} 21. Rfe1 {[%emt 0:8:54]} Bc6 {[%emt 0:1:58]} 22. h5 {[%emt 0:2:37]} Nd7 {[%emt 0:9:25]} 23. Bf6 {[%emt 0:5:45]} Bxf6 {[%emt 0:6:45]} 24. exf6 {[%emt 0:0:2]} Qd6 {[%emt 0:0:33]} 25. Ng5 {[%emt 0:4:13]} d4 {[%emt 0:9:20]} 26. Qh3 {[%emt 0:1:44]} Qd5 {[%emt 0:1:37]} 27. Nxe6 {[%emt 0:10:13]} fxe6 {[%emt 0:0:25]} 28. hxg6 {[%emt 0:0:54]} Kd8 {[%emt 0:0:51]} 29. g7 {[%emt 0:3:2]} Rg8 {[%emt 0:0:5]} 30. Be4 {[%emt 0:2:58]} Qg5 {[%emt 0:0:55]} 31. Qxe6 {[%emt 0:1:24]} Nxf6 {[%emt 0:0:41]} 32. Bd5 {[%emt 0:2:51]} Qxg7 {[%emt 0:0:23]} 33. Qd6+ {[%emt 0:0:51]} Nd7 {[%emt 0:0:5]} 34. Ra3 {[%emt 0:0:34]} Bxd5 {[%emt 0:0:36]} 35. Qxd5 {[%emt 0:0:52]} Qg5 {[%emt 0:0:48]} 36. Qxb7 {[%emt 0:0:6]} Rc1 {[%emt 0:0:38]} 37. Qa8+ {[%emt 0:1:10]} Rc8 {[%emt 0:0:6]} 38. Qe4 {[%emt 0:0:29]} Qf6 {[%emt 0:0:50]} 39. Rf3 {[%emt 0:0:54]} Qd6 {[%emt 0:0:27]} 40. Rd3 {[%emt 0:0:0]} Rc4 {[%emt 0:0:0]} 41. Qa8+ {[%emt 0:3:32]} Nb8 {[%emt 0:13:13]} 42. Rb3 {[%emt 0:5:35]} Kd7 {[%emt 0:14:50]} 43. Rb7+ {[%emt 0:4:48]} Kc8 {[%emt 0:1:59]} 44. Rxb8+ {[%emt 0:2:8]} Qxb8 {[%emt 0:1:23]} 45. Qa6+ {[%emt 0:1:20]} Kd7 {[%emt 0:8:49]} 46. Qe6+ {[%emt 0:1:34]} Kc7 {[%emt 0:0:55]} 47. Qxc4+ {[%emt 0:0:2]} Kd7 {[%emt 0:5:42]} 48. Qd5+ {[%emt 0:0:15]} Kc7 {[%emt 0:2:45]} 49. Re7+ {[%emt 0:0:5]} Kb6 {[%emt 0:0:15]} 50. Qb5# {[%emt 0:0:2]} 1-0

[Event "57th Biel Festival MTO 2024"]
[White "Madaminov,Mukhiddin"]
[Black "Ganguly,Surya Shekhar"]
[Site "Biel"]
[Round "3.1"]
[Annotator "TA"]
[Result "1/2-1/2"]
[Date "2024.07.17"]
[WhiteElo "2517"]
[BlackElo "2575"]
[PlyCount "33"]
[TimeControl "60"]

{[%evp 9,33,9,6,14,27,4,12,12,32,30,16,20,20,19,22,16,13,6,18,0,0,0,0,0,0,0]} 1. e4 {[%emt 0:0:45]} e5 {[%emt 0:0:14]} 2. Nf3 {[%emt 0:0:15]} Nc6 {[%emt 0:0:5]} 3. Bb5 {[%emt 0:0:27]} Nf6 {[%emt 0:0:14]} 4. d3 {[%emt 0:1:28]} Bc5 {[%emt 0:0:8]} 5. c3 {[%emt 0:0:9]} O-O {[%emt 0:0:27]} 6. O-O {[%emt 0:0:11]} d5 {[%emt 0:0:16]} 7. Nbd2 {[%emt 0:0:36]} Re8 {[%emt 0:0:26]} 8. exd5 {[%emt 0:9:55]} a6 {[%emt 0:0:18]} 9. Bxc6 {[%emt 0:4:16]} bxc6 {[%emt 0:0:9]} 10. Ne4 {[%emt 0:1:2] Die Stellung ist ausgeglichen.} Nxe4 {[%emt 0:1:6]} 11. dxe4 {[%emt 0:0:21]} cxd5 {[%emt 0:0:4]} 12. Qxd5 {[%emt 0:4:51]} Qxd5 {[%emt 0:0:6]} 13. exd5 {[%emt 0:0:5]} e4 {[%emt 0:0:5]} 14. Nd2 {[%emt 0:6:49]} e3 {[%emt 0:4:43]} 15. fxe3 {[%emt 0:3:50]} Bxe3+ {[%emt 0:5:13]} 16. Kh1 {[%emt 0:0:11]} Bg4 {[%emt 0:0:42] Das Läuferpaar ist gut.} 17. Nf3 $1 {[%emt 0:8:41] Ein ziemlich ruhiges Remis.   Gewichteter Fehlerwert: Weiß=0.06 (makellos) /Schwarz=0.04 (makellos) .  OK:         	Weiß=2     	Schwarz=5     Bester:       	Weiß=1     	---        Stark:        	Weiß=1     	---} 1/2-1/2

[Event "57th Biel Festival MTO 2024"]
[White "Bilguun,Sumiya"]
[Black "Sasikiran,Krishnan"]
[Site "Biel"]
[Round "3.2"]
[Annotator "TA"]
[Result "0-1"]
[Date "2024.07.17"]
[WhiteElo "2466"]
[BlackElo "2581"]
[PlyCount "84"]
[TimeControl "60"]

{[%evp 30,84,67,-17,-21,-11,-13,-10,-13,-15,-14,-18,19,36,31,15,27,-21,-26,-37,0,0,0,-13,-31,-56,-42,-53,-23,-16,-18,-325,-349,-316,-233,-327,-346,-333,-350,-345,-340,-329,-333,-536,-530,-522,-520,-2233,-2179,-1636,-2339,-2470,-2242,-29966,-29967,-29965,-29962]} 1. e4 {[%emt 0:0:3]} c5 {[%emt 0:2:22]} 2. Nc3 {[%emt 0:0:26]} e6 {[%emt 0:0:47]} 3. f4 {[%emt 0:2:10]} d5 {[%emt 0:1:2]} 4. Nf3 {[%emt 0:0:37]} dxe4 {[%emt 0:1:50]} 5. Nxe4 {[%emt 0:0:12]} Nc6 {[%emt 0:0:54]} 6. Bb5 {[%emt 0:22:55]} Bd7 {[%emt 0:1:44]} 7. Qe2 {[%emt 0:6:23] B21: Sicilian: 2 f4 and Morra Gambit.} Nf6 {[%emt 0:1:11]} 8. Nxf6+ {[%emt 0:9:14]} gxf6 {[%emt 0:0:57]} 9. f5 $146 {[%emt 0:7:56]} ({Predecessor:} 9. a4 Bd6 10. g3 Qe7 11. b3 Nd4 12. Nxd4 cxd4 13. Bb2 e5 14. Bxd7+ Kxd7 15. Qb5+ {1-0 Danielsen,M (2015)-Steffers,H (1987) NATO-ch 18th 2007 (5)} )e5 {[%emt 0:18:3]} 10. O-O {[%emt 0:3:0]} Rg8 {[%emt 0:9:7]} 11. c3 {[%emt 0:5:30]} Qb6 {[%emt 0:5:36]} 12. Bc4 {[%emt 0:7:36]} Na5 {[%emt 0:4:40]} 13. Bd5 {[%emt 0:11:21]} c4+ {[%emt 0:5:38]} 14. Kh1 {[%emt 0:0:35]} O-O-O {[%emt 0:2:32]} 15. Bxf7 {[%emt 0:5:51]} Rg7 {[%emt 0:4:38]} 16. Be6 {[%emt 0:4:54]} (16. Bxc4 $14 Nxc4 (16... Bxf5 17. Nxe5 Be6 18. b4 $18 )17. Qxc4+ Kb8 (17... Qc6 18. Qxc6+ Bxc6 19. d4 $16 )18. Qe2 )Bxe6 $11 {[%emt 0:6:37]} 17. fxe6 {[%emt 0:0:9]} Qxe6 {[%emt 0:2:46]} 18. Nd4 {[%emt 0:3:8]} Qd5 {[%emt 0:13:17]} (18... exd4 $2 19. Qxe6+ Kb8 20. Qxf6 $18 )19. Nf5 {[%emt 0:0:32]} Rc7 {[%emt 0:3:31]} 20. Ne3 {[%emt 0:3:59]} Qd3 {[%emt 0:3:32]} 21. Qxd3 {[%emt 0:0:58]} Rxd3 {[%emt 0:2:13]} 22. Rxf6 {[%emt 0:1:39]} Bc5 {[%emt 0:2:5]} 23. Nc2 {[%emt 0:2:46]} (23. Ng4 $1 {feels stronger.} )e4 {[%emt 0:1:52]} 24. Rf1 {[%emt 0:0:13]} Rg7 {[%emt 0:2:50]} 25. Rb1 {[%emt 0:1:15]} Nc6 {[%emt 0:1:0]} 26. b3 {[%emt 0:2:1]} Ne5 {[%emt 0:2:48]} 27. Nd4 {[%emt 0:3:50]} Rf7 {[%emt 0:3:34]} 28. Re1 $1 {[%emt 0:2:15]} (28. Rxf7 Nxf7 29. g3 (29. bxc4 $2 Bxd4 30. cxd4 e3 $19 )e3 30. dxe3 (30. bxc4 $2 Bxd4 31. cxd4 e2 $19 )Rd1+ 31. Kg2 Ba3 $17 )Ng4 {[%emt 0:2:36]} 29. bxc4 {[%emt 0:1:6]} Bd6 {[%emt 0:1:1]} 30. Nb5 $2 {[%emt 0:2:10][%mdl 8192]} (30. Rb5 $11 {and White is okay.} )Bxh2 $19 {[%emt 0:0:56]} (30... Nxh2 $2 31. Nxd6+ (31. Rxe4 $2 Rf1# )(31. Nxa7+ Kd8 $15 )Rxd6 32. Kxh2 $18 )(30... Bc5 31. Nd4 $17 )31. Ba3 {[%emt 0:0:27]} (31. Nxa7+ Kb8 32. Nc6+ Ka8 $19 )Rxd2 {[%emt 0:1:37]} 32. Bc5 {[%emt 0:0:29] [#]} (32. Nxa7+ $142 Kb8 33. Nc6+ Kc7 34. Na5 )Rf5 $1 $19 {[%emt 0:1:43]} (32... Rxa2 $2 33. Nxa7+ Rxa7 34. Bxa7 $18 )33. Rxe4 {[%emt 0:0:35]} Rxc5 {[%emt 0:0:44]} 34. Rxg4 {[%emt 0:0:32] [#]} Rh5 $1 {[%emt 0:0:20]} 35. g3 {[%emt 0:0:38]} (35. Nxa7+ $2 {perishes.} Kb8 36. g3 Bxg3+ (36... Kxa7 $2 37. Rb5 $19 )37. Kg1 Bh2+ (37... Kxa7 38. Rxg3 Rh6 39. a4 $15 )(37... Bf2+ $2 38. Kg2 $19 )38. Kf1 Kxa7 $19 )(35. Rg8+ Kd7 36. Rg7+ (36. Nxa7 $2 Bd6+ 37. Kg1 Bc5+ 38. Kf1 Rh1# )Ke8 37. Rg8+ (37. Nxa7 $2 Bg3+ 38. Kg1 Bf2+ 39. Kf1 Rh1# )Kf7 $19 )a6 {[%emt 0:1:1]} ({Not} 35... Bxg3+ 36. Kg1 Bf2+ 37. Kg2 $11 )36. Rg8+ $2 {[%emt 0:0:21]} (36. Rh4 Rxh4 37. gxh4 axb5 38. Rxb5 )Kd7 $19 {[%emt 0:0:23]} 37. Rg7+ {[%emt 0:0:34]} Kd8 {[%emt 0:0:30]} 38. Na3 {[%emt 0:0:33]} (38. Rg4 $142 Bxg3+ (38... axb5 $2 39. Rxb5 Rxb5 40. cxb5 $19 )39. Kg1 Bf2+ 40. Kg2 )Bxg3+ $19 {[%emt 0:0:47]} 39. Kg1 {[%emt 0:0:1]} Bh2+ {[%emt 0:0:27]} (39... Rxa2 40. Rxg3 Rxa3 41. Rxb7 Ra1+ 42. Kf2 $16 )40. Kf1 {[%emt 0:0:10]} Bd6 {[%emt 0:0:30]} 41. Rg8+ {[%emt 0:6:8]} Kc7 {[%emt 0:1:41]} 42. Rg7+ {[%emt 0:7:0]} Kc6 {[%emt 0:0:51]} 0-1

[Event "57th Biel Festival MTO 2024"]
[White "Moiseenko,Alexander"]
[Black "Sokolovsky,Yahli"]
[Site "Biel"]
[Round "3.3"]
[Annotator "TA"]
[Result "1/2-1/2"]
[Date "2024.07.17"]
[WhiteElo "2560"]
[BlackElo "2492"]
[PlyCount "49"]
[TimeControl "60"]

{[%evp 9,49,16,31,43,47,-16,-25,-40,-6,-60,-70,-70,-25,-34,-25,-13,-19,-19,-17,-25,-17,-19,0,0,0,0,0,0,0,0,8,8,24,6,4,5,8,8,6,8,4,5]} 1. d4 {[%emt 0:4:47]} Nf6 {[%emt 0:0:6]} 2. Bg5 {[%emt 0:0:46]} Ne4 {[%emt 0:0:6]} 3. Bf4 {[%emt 0:0:5]} d5 {[%emt 0:0:7]} 4. e3 {[%emt 0:1:28]} c5 {[%emt 0:2:2]} 5. Bd3 {[%emt 0:1:17]} Nc6 {[%emt 0:4:11]} 6. Bxe4 {[%emt 0:11:51]} dxe4 {[%emt 0:0:5]} 7. Ne2 {[%emt 0:0:10] [#]} ({White should play} 7. d5 $1 $14 Nb4 8. Nc3 )g5 $1 $11 {[%emt 0:15:14]} 8. Bxg5 {[%emt 0:3:27] Black has an edge.} Rg8 $1 {[%emt 0:3:56]} 9. Bf4 {[%emt 0:13:23]} (9. h4 $11 )cxd4 $1 $15 {[%emt 0:16:6]} 10. exd4 {[%emt 0:1:7]} e5 {[%emt 0:0:14]} 11. Bxe5 {[%emt 0:16:45]} Nxe5 {[%emt 0:0:46]} 12. dxe5 {[%emt 0:0:2] [#] And now Nbc3 would win.} Qxd1+ {[%emt 0:3:57]} 13. Kxd1 {[%emt 0:0:3]} Rxg2 {[%emt 0:0:33][%cal Oe4e3]} 14. Nbc3 {[%emt 0:0:34][%cal Bb1c3,Bc3e4,Be4d2,Bd2b3,Bb3d4][%mdl 32]} Bg4 {[%emt 0:20:53]} 15. Nxe4 {[%emt 0:2:14] Hoping for Nf6+.} O-O-O+ {[%emt 0:4:43]} 16. Ke1 {[%emt 0:0:23]} Bf3 {[%emt 0:1:34][%cal Bg4f3,Bf3c6,Bc6e4][%mdl 32]} 17. Nd2 {[%emt 0:4:59]} Bc6 {[%emt 0:0:35]} 18. Nb3 {[%emt 0:15:37] Wards off Bc5} Bg7 {[%emt 0:5:52]} 19. Nbd4 {[%emt 0:7:40] Nxc6 would now be deadly.} Be4 {[%emt 0:7:0]} (19... Bxe5 20. Nxc6 bxc6 21. c3 )20. f4 {[%emt 0:7:14]} Bh6 {[%emt 0:6:51][%cal Og2e2] A strong pair of Bishops.} (20... Rxe2+ 21. Kxe2 Rxd4 (21... Bxh1 $2 {loses.} 22. Nf5 $18 )22. Ke3 )21. c3 {[%emt 0:1:38]} Rdg8 {[%emt 0:2:33][%cal Oh6f4] The position is equal.} 22. Rd1 {[%emt 0:1:51]} Rxe2+ {[%emt 0:4:2]} 23. Kxe2 {[%emt 0:0:6]} Bxh1 {[%emt 0:0:9]} 24. Rxh1 {[%emt 0:0:6] Kf3 is the strong threat.} Bxf4 {[%emt 0:0:27]} 25. Rf1 {[%emt 0:8:27] Weighted Error Value: White=0.12 (very precise) /Black=0.06 (flawless) .  Mistake:       	White=2     	---        Inaccurate:     	---       	Black=1      OK:         	White=8     	Black=6      Best:        	White=2     	Black=2      Strong:       	---       	Black=2      Brilliant:      	---       	Black=1} 1/2-1/2